fUST/lending_fUST_20240917
["ID","MTS","AMOUNT","RATE_DAILY","PERIOD"]
[338372725,1726569352208,1020.21,0.00025,60]
[338372726,1726569352505,227.01541615,0.00025,60]
[338372727,1726569353132,500.0,0.00025,60]
[338372728,1726569353796,500.0,0.00025,60]
[338372729,1726569354229,2192.36,0.00025,60]
[338372730,1726569356483,685.32,0.00025,60]
[338372731,1726569357809,500.0,0.00025,60]
[338372732,1726569358034,500.0,0.00025,60]
[338372733,1726569358217,500.0,0.00025,60]
[338372734,1726569359345,6802.94,0.00025,60]
[338372735,1726569360843,500.0,0.00025,60]
[338372736,1726569361550,629.28,0.00025,60]
[338372737,1726569361730,500.0,0.00025,60]
[338372738,1726569363600,246.32920018,0.00025,60]
[338372739,1726569363844,15068.0,0.00025,60]
[338372740,1726569364431,500.0,0.00025,60]
[338372741,1726569367529,500.0,0.00025,60]
[338372742,1726569367785,697.02,0.00025,60]
[338372743,1726569370482,500.0,0.00025,60]
[338372744,1726569370562,1193.45,0.00025,60]
[338372745,1726569370863,500.0,0.00025,60]
[338372746,1726569371534,500.0,0.00025,60]
[338372747,1726569371827,2540.66,0.00025,60]
[338372748,1726569372012,295.66277438,0.00025,60]
[338372749,1726569372202,822.79,0.00025,60]
[338372750,1726569372874,845.91,0.00025,60]
[338372751,1726569372963,1932.68,0.00025,60]
[338372752,1726569374065,811.64,0.00025,60]
[338372753,1726569374809,162.521938,0.00013699,2]
[338372754,1726569376944,788.33,0.00025,60]
[338372755,1726569377422,813.11,0.00025,60]
[338372756,1726569377636,500.0,0.00025,60]
[338372757,1726569377955,782.91,0.00025,60]
[338372758,1726569379445,749.12,0.00025,60]
[338372759,1726569381229,500.0,0.00025,60]
[338372760,1726569381592,500.0,0.00025,60]
[338372761,1726569381867,500.0,0.00025,60]
[338372762,1726569383057,500.0,0.00025,60]
[338372763,1726569384518,500.0,0.00025,60]
[338372764,1726569385722,785.45,0.00025,60]
[338372765,1726569385848,500.0,0.00025,60]
[338372766,1726569386662,500.0,0.00025,60]
[338372767,1726569386715,500.0,0.00025,60]
[338372768,1726569386769,500.0,0.00025,60]
[338372769,1726569386872,750.46,0.00025,60]
[338372770,1726569388949,2589.97,0.00025,60]
[338372771,1726569390128,2206.77,0.00025,60]
[338372772,1726569390832,1153.37,0.00025,60]
[338372773,1726569391183,500.0,0.00025,60]
[338372774,1726569393509,500.0,0.00025,60]
[338372775,1726569393877,410.50804409,0.00025,60]
[338372776,1726569393935,634.68,0.00025,60]
[338372777,1726569395754,500.0,0.00025,60]
[338372778,1726569396091,500.0,0.00025,60]
[338372779,1726569396208,500.0,0.00025,60]
[338372780,1726569396331,500.0,0.00025,60]
[338372781,1726569397027,500.0,0.00025,60]
[338372782,1726569397533,500.0,0.00025,60]
[338372783,1726569398402,500.0,0.00025,60]
[338372784,1726569399043,877.9,0.00025,60]
[338372785,1726569401165,1563.78,0.00025,60]
[338372786,1726569401459,500.0,0.00025,60]
[338372787,1726569401574,500.0,0.00025,60]
[338372788,1726569403696,500.0,0.00025,60]
[338372789,1726569404352,1754.38,0.00025,60]
[338372790,1726569404582,500.0,0.00025,60]
[338372791,1726569405571,10473.87650547,0.00025,60]
[338372806,1726570031153,-190.733747,0.00017825,2]
[338372807,1726570031177,-260.67128765,0.00017846,2]
[338372808,1726570044123,-21885.11368851,0.00017647,2]
[338372813,1726570156534,162.521938,0.00013699,2]
[338372833,1726570232330,-1000.0,0.0001747,2]
[338372834,1726570232341,-3014.88631149,0.00017647,2]
[338372835,1726570232350,-190.733747,0.00017819,2]
[338372836,1726570232359,-190.733747,0.00018283,2]
[338372837,1726570232369,-631.22510694,0.00018446,2]
[338372838,1726570232378,-117.41533134,0.00018505,2]
[338372839,1726570232408,-182.58466866,0.00018505,2]
[338372840,1726570232417,-300.0,0.00018505,2]
[338372842,1726570232427,-117.41533134,0.00018506,2]
[338372936,1726570243303,-500.0,0.0001805,2]
[338372937,1726570243313,-6246.6175452,0.00018506,2]
[338372939,1726570243322,-501.860569,0.0001855,2]
[338372941,1726570243332,-190.733747,0.00018747,2]
[338372943,1726570243341,-231.08370398,0.0001877,2]
[338372945,1726570243350,-1000.0,0.0001878,2]
[338372948,1726570243359,-4040.28120729,0.0001879,2]
[338372987,1726570246458,-50.15611496,0.0001879,2]
[338373005,1726570772057,162.521938,0.00013699,2]
[338373009,1726571026783,10000.0,0.000136,30]
[338373010,1726571034781,10000.0,0.000136,30]
[338373012,1726571039965,10000.0,0.000136,30]
[338373013,1726571043370,10000.0,0.000136,30]
[338373063,1726571270171,162.521938,0.00013699,2]
[338373066,1726571353178,-300.0,0.00014599,2]
[338373067,1726571353219,-190.46368765,0.00014599,2]
[338373068,1726571355152,-109.53631235,0.00014599,2]
[338373069,1726571355173,-1290.69271884,0.000146,30]
[338373070,1726571357137,-8709.30728116,0.000146,30]
[338373130,1726571432647,-250.0,0.00016197,2]
[338373133,1726571432661,-179.393832,0.000165,2]
[338373135,1726571432672,-300.0,0.0001703,2]
[338373137,1726571432682,-300.0,0.0001703,2]
[338373139,1726571432694,-2236.08455194,0.00017031,2]
[338373166,1726571438738,-8885.3833668,0.00017031,2]
[338373406,1726571443626,-13778.53208126,0.00017031,2]
[338373407,1726571443635,-179.393832,0.0001736,2]
[338373408,1726571443646,-1535.90675425,0.00017822,5]
[338373409,1726571443658,-200.0,0.00018,2]
[338373411,1726571443669,-300.0,0.00018,2]
[338373412,1726571443678,-501.860569,0.0001805,2]
[338373413,1726571443688,-153.0,0.00018052,2]
[338373414,1726571443697,-153.0,0.00018052,2]
[338373415,1726571443706,-153.0,0.00018052,2]
[338373416,1726571443715,-153.0,0.00018052,2]
[338373417,1726571443724,-153.0,0.00018052,2]
[338373418,1726571443734,-153.0,0.00018052,2]
[338373419,1726571443743,-300.0,0.000181,2]
[338373420,1726571443753,-153.0,0.000181,2]
[338373421,1726571443763,-306.0,0.000181,2]
[338373422,1726571443774,-306.0,0.00018178,2]
[338373423,1726571443784,-500.0,0.000182,2]
[338373424,1726571443793,-153.0,0.00018278,2]
[338373425,1726571443803,-208.6901718,0.00018278,2]
[338373426,1726571443812,-477.0,0.000183,2]
[338373427,1726571443822,-666.0,0.000184,2]
[338373428,1726571443831,-7135.3120227,0.00018476,2]
[338373429,1726571443841,-200.0,0.000185,2]
[338373430,1726571443853,-153.0,0.00018521,2]
[338373431,1726571443863,-153.0,0.00018521,2]
[338373432,1726571443872,-153.0,0.00018521,2]
[338373433,1726571443881,-153.0,0.00018521,2]
[338373434,1726571443891,-420.0,0.000186,2]
[338373435,1726571443900,-420.0,0.00018733,2]
[338373436,1726571443910,-231.08370398,0.0001877,2]
[338373437,1726571443919,-1000.0,0.0001878,2]
[338373438,1726571443929,-1000.0,0.00018793,2]
[338373439,1726571443938,-231.08370394,0.00018796,2]
[338373440,1726571443950,-1000.0,0.000188,2]
[338373441,1726571443962,-1000.0,0.00018808,2]
[338373442,1726571443972,-231.08370394,0.00018822,2]
[338373443,1726571443981,-1000.0,0.00018824,2]
[338373444,1726571443991,-1000.0,0.00018847,2]
[338373445,1726571444000,-231.08370394,0.00018847,2]
[338373446,1726571444010,-1000.0,0.0001886,2]
[338373447,1726571444020,-286.77173429,0.00018869,2]
[338373448,1726571444031,-183.92188227,0.00018869,2]
[338373449,1726571444042,-464.87884201,0.00018869,2]
[338373450,1726571444052,-500.0,0.00018869,2]
[338373451,1726571444061,-500.0,0.00018869,2]
[338373452,1726571444070,-500.0,0.00018869,2]
[338373453,1726571444080,-500.0,0.00018869,2]
[338373454,1726571444090,-650.27210986,0.00018869,2]
[338373455,1726571444101,-500.0,0.00018869,2]
[338373456,1726571444111,-500.0,0.00018869,2]
[338373457,1726571444120,-650.0,0.00018869,2]
[338373458,1726571444130,-1830.5525639,0.0001887,5]
[338373459,1726571444139,-14960.13939088,0.0001887,2]
[338373460,1726571444152,-12210.57677247,0.0001887,2]
[338373565,1726571766248,10000.0,0.0002051,120]
[338373567,1726571807491,9660.0,0.0002051,120]
[338373569,1726571979800,1000.0,0.000201,59]
[338373570,1726572030521,162.521938,0.00013699,2]
[338373576,1726572550133,-164.52440046,0.00016569,2]
[338373577,1726572550160,-137.957717,0.00016669,2]
[338373579,1726572560778,162.521938,0.00013699,2]
[338373661,1726572638769,-10.00946301,0.00016575,2]
[338373690,1726572643828,-154.51493744,0.00016575,2]
[338373691,1726572643838,-112.042283,0.00016669,2]
[338373692,1726572643848,-184.957747,0.00016675,2]
[338373693,1726572643858,-164.645155,0.00016758,2]
[338373694,1726572643868,-11594.41665003,0.0001679,2]
[338373716,1726572646761,-1196.48,0.0001679,2]
[338373719,1726572646787,-108.75612832,0.0001679,2]
[338373735,1726573071740,162.521938,0.00013699,2]
[338373762,1726573647973,162.521938,0.00013699,2]
[338373769,1726573746161,-3000.0,0.00015,2]
[338373770,1726573754120,-164.52440045,0.00015142,2]
[338373771,1726573754144,-848.7112531,0.00015162,2]
[338373772,1726573754169,-176.98439092,0.00015242,2]
[338373774,1726573768132,-73.01560908,0.00015242,2]
[338373775,1726573768158,-300.0,0.00015878,2]
[338373776,1726573768181,-735.52209591,0.00015879,2]
[338373787,1726573805529,407.09,0.00010959,2]
[338373789,1726573816064,339.24,0.00010959,2]
[338373790,1726573826719,282.7,0.00010959,2]
[338373821,1726573831902,-300.0,0.00015878,2]
[338373823,1726573831912,-300.0,0.00015878,2]
[338373825,1726573831922,-418.49560548,0.00015879,2]
[338373837,1726573837258,235.59,0.00010959,2]
[338373883,1726573839971,-23745.98229861,0.00015879,2]
[338373884,1726573839981,-184.957747,0.00015891,2]
[338373885,1726573839990,-164.645155,0.0001609,2]
[338373886,1726573840000,-184.957747,0.00016305,2]
[338373887,1726573840009,-6334.6790437,0.00016575,2]
[338373888,1726573840019,-4804.45260798,0.0001664,2]
[338373889,1726573840028,-184.957747,0.00016719,2]
[338373890,1726573840037,-470.26128599,0.00016814,2]
[338373891,1726573840047,-158.7219816,0.00016923,2]
[338373892,1726573840058,-554.055012,0.00017227,2]
[338373893,1726573840068,-554.055012,0.00017227,2]
[338373894,1726573840077,-554.055012,0.00017227,2]
[338373895,1726573840088,-554.055012,0.00017227,2]
[338373896,1726573840097,-554.055012,0.00017227,2]
[338373897,1726573840107,-554.055012,0.00017227,2]
[338373898,1726573840117,-312.119129,0.00017227,2]
[338373899,1726573840128,-312.119129,0.00017227,2]
[338373900,1726573840137,-151.0,0.00017227,2]
[338373901,1726573840148,-312.119129,0.00017227,2]
[338373902,1726573840157,-631.22510694,0.00017228,2]
[338373903,1726573840167,-417.2700046,0.00017256,2]
[338373904,1726573840177,-153.0,0.00017356,2]
[338373905,1726573840187,-208.6901718,0.00017356,2]
[338373906,1726573840197,-208.4143243,0.00017356,2]
[338373907,1726573840206,-208.5342696,0.00017356,2]
[338373908,1726573840215,-420.0,0.00017362,2]
[338373909,1726573840225,-208.6901718,0.00017456,2]
[338373910,1726573840235,-420.0,0.00017466,2]
[338373911,1726573840245,-416.9388884,0.00017479,2]
[338373912,1726573840256,-159.48030272,0.00017955,2]
[338373913,1726573840266,-153.0,0.00017981,2]
[338373914,1726573840275,-500.0,0.00017989,2]
[338373915,1726573840285,-500.0,0.00017989,2]
[338373916,1726573840294,-322.55733426,0.00017989,2]
[338373917,1726573840305,-500.0,0.00017989,2]
[338373918,1726573840315,-229.63242283,0.00017989,2]
[338373919,1726573840324,-500.0,0.00017989,2]
[338373920,1726573840333,-500.0,0.00017989,2]
[338373921,1726573840344,-500.0,0.00017989,2]
[338373922,1726573840354,-524.79650718,0.00017989,2]
[338373923,1726573840363,-500.0,0.00017989,2]
[338373924,1726573840373,-500.0,0.00017989,2]
[338373925,1726573840382,-71146.1458995,0.0001799,2]
[338373930,1726573842896,-312.119129,0.00017227,2]
[338373931,1726573842908,-312.119129,0.00017227,2]
[338373932,1726573842917,-11431.82357703,0.0001799,2]
[338373942,1726573845888,-500.0,0.00017226,2]
[338373943,1726573845897,-97.8,0.00017226,2]
[338373944,1726573847779,196.32,0.00010959,2]
[338373946,1726573858556,163.6,0.00010959,2]
[338373947,1726573869086,165.15,0.00010959,2]
[338373948,1726573879658,825.75,0.00010959,2]
[338373978,1726574254714,162.521944,0.00013699,2]
[338373984,1726574615762,600.0,0.0001401,2]
[338373985,1726574841793,162.521944,0.00013699,2]
[338374006,1726574948230,-151.67355823,0.00015012,2]
[338374007,1726574948253,-164.645155,0.00015099,2]
[338374008,1726574950358,-300.0,0.00015111,2]
[338374009,1726574950383,-300.0,0.00015111,2]
[338374010,1726574950406,-1080.22004447,0.00015112,2]
[338374012,1726574964642,152.34357677,0.00014797,2]
[338374013,1726574967271,-2672.31915923,0.00014797,2]
[338374014,1726574967293,-19259.57950826,0.00015112,2]
[338374016,1726575031998,-4560.20044727,0.00015112,2]
[338374017,1726575032008,-219.418754,0.00015126,2]
[338374018,1726575032018,-219.418754,0.00015168,2]
[338374019,1726575032028,-219.418754,0.00015209,2]
[338374020,1726575032038,-219.418754,0.00015251,2]
[338374022,1726575032048,-119.10333699,0.00015292,2]
[338374024,1726575032060,-100.31541701,0.00015292,2]
[338374026,1726575032070,-151.6735582,0.00015302,2]
[338374028,1726575032080,-219.418754,0.00015334,2]
[338374030,1726575032089,-219.418754,0.00015375,2]
[338374032,1726575032099,-219.418754,0.00015417,2]
[338374034,1726575032109,-219.418754,0.00015458,2]
[338374036,1726575032118,-219.418754,0.000155,2]
[338374038,1726575032127,-219.418754,0.00015541,2]
[338374040,1726575032137,-219.418754,0.00015583,2]
[338374042,1726575032146,-148.76925296,0.00015592,2]
[338374044,1726575032162,-2.90430524,0.00015592,2]
[338374046,1726575032172,-219.418754,0.00015624,2]
[338374048,1726575032181,-219.418754,0.00015666,2]
[338374050,1726575032190,-219.418754,0.00015707,2]
[338374052,1726575032200,-219.418754,0.00015749,2]
[338374054,1726575032210,-219.418754,0.0001579,2]
[338374056,1726575032219,-219.418754,0.00015831,2]
[338374058,1726575032229,-219.418754,0.00015873,2]
[338374060,1726575032240,-151.6735582,0.00015883,2]
[338374062,1726575032250,-300.0,0.00015914,2]
[338374064,1726575032259,-300.0,0.00015914,2]
[338374066,1726575032269,-219.418754,0.00015914,2]
[338374068,1726575032279,-233.33635743,0.00016152,2]
[338374070,1726575032288,-151.6735582,0.00016173,2]
[338374072,1726575032298,-151.6735582,0.00016463,2]
[338374074,1726575032307,-151.6735582,0.00016753,2]
[338374076,1726575032316,-4804.45260798,0.00016753,2]
[338374078,1726575032326,-500.0,0.00016853,2]
[338374080,1726575032335,-500.0,0.00016853,2]
[338374082,1726575032344,-391.88481696,0.00016853,2]
[338374131,1726575040085,-423.97317347,0.00016857,2]
[338374132,1726575040094,-500.0,0.00016857,2]
[338374133,1726575040104,-500.0,0.00016857,2]
[338374134,1726575040117,-500.0,0.00016857,2]
[338374135,1726575040127,-500.0,0.00016857,2]
[338374136,1726575040139,-397.30366474,0.00016857,2]
[338374137,1726575040149,-500.0,0.00016857,2]
[338374138,1726575040157,-500.0,0.00016857,2]
[338374139,1726575040168,-500.0,0.00016857,2]
[338374140,1726575040178,-500.0,0.00016857,2]
[338374141,1726575040187,-500.0,0.00016857,2]
[338374142,1726575040197,-500.0,0.00016857,2]
[338374143,1726575040207,-500.0,0.00016857,2]
[338374144,1726575040216,-500.0,0.00016857,2]
[338374145,1726575040227,-500.0,0.00016857,2]
[338374146,1726575040237,-500.0,0.00016857,2]
[338374147,1726575040248,-500.0,0.00016857,2]
[338374148,1726575040258,-500.0,0.00016857,2]
[338374149,1726575040268,-500.0,0.00016857,2]
[338374150,1726575040278,-500.0,0.00016857,2]
[338374151,1726575040287,-500.0,0.00016857,2]
[338374152,1726575040297,-500.0,0.00016857,2]
[338374153,1726575040306,-500.0,0.00016857,2]
[338374154,1726575040316,-500.0,0.00016857,2]
[338374155,1726575040326,-500.0,0.00016857,2]
[338374156,1726575040336,-500.0,0.00016857,2]
[338374157,1726575040348,-500.0,0.00016857,2]
[338374158,1726575040358,-500.0,0.00016857,2]
[338374159,1726575040370,-500.0,0.00016857,2]
[338374160,1726575040379,-500.0,0.00016857,2]
[338374161,1726575040388,-500.0,0.00016857,2]
[338374162,1726575040398,-500.0,0.00016857,2]
[338374163,1726575040407,-500.0,0.00016857,2]
[338374164,1726575040418,-500.0,0.00016857,2]
[338374165,1726575040427,-500.0,0.00016857,2]
[338374166,1726575040436,-482.23292611,0.00016857,2]
[338374167,1726575040445,-500.0,0.00016857,2]
[338374168,1726575040455,-500.0,0.00016857,2]
[338374169,1726575040464,-500.0,0.00016857,2]
[338374170,1726575040474,-500.0,0.00016857,2]
[338374171,1726575040484,-3266.83,0.00016858,2]
[338374172,1726575040493,-171.298788,0.00016958,2]
[338374173,1726575040502,-171.298788,0.00016967,2]
[338374174,1726575040512,-151.0,0.00016967,2]
[338374175,1726575040521,-151.0,0.00016967,2]
[338374176,1726575040531,-151.0,0.00016967,2]
[338374177,1726575040542,-171.298788,0.00016975,2]
[338374178,1726575040554,-171.298788,0.00016984,2]
[338374179,1726575040564,-171.298788,0.00016992,2]
[338374180,1726575040574,-171.298788,0.00017001,2]
[338374181,1726575040583,-171.298788,0.00017009,2]
[338374182,1726575040593,-171.298788,0.00017018,2]
[338374183,1726575040772,-171.298788,0.00017026,2]
[338374184,1726575040782,-171.298788,0.00017035,2]
[338374185,1726575040791,-171.298788,0.00017043,2]
[338374186,1726575040801,-631.22510694,0.00017186,2]
[338374187,1726575040812,-153.0,0.00017256,2]
[338374188,1726575040822,-306.0,0.00017278,2]
[338374189,1726575040831,-158.7219886,0.00017397,2]
[338374190,1726575040840,-420.0,0.00017401,2]
[338374191,1726575040849,-420.0,0.00017506,2]
[338374192,1726575040858,-6334.6790437,0.00017546,2]
[338374193,1726575040868,-151.0,0.0001758,2]
[338374194,1726575040877,-210.519838,0.0001758,2]
[338374195,1726575040887,-151.0,0.0001758,2]
[338374196,1726575040897,-210.519838,0.0001758,2]
[338374197,1726575040908,-151.0,0.0001758,2]
[338374198,1726575040919,-151.0,0.0001758,2]
[338374199,1726575040928,-314.42234,0.0001758,2]
[338374200,1726575040938,-314.42234,0.0001758,2]
[338374201,1726575040947,-312.368011,0.0001758,2]
[338374202,1726575040956,-312.368011,0.0001758,2]
[338374203,1726575040965,-151.0,0.0001758,2]
[338374204,1726575040974,-151.0,0.0001758,2]
[338374205,1726575040983,-151.0,0.0001758,2]
[338374206,1726575040993,-151.0,0.0001758,2]
[338374207,1726575041002,-151.0,0.0001758,2]
[338374208,1726575041011,-151.0,0.0001758,2]
[338374209,1726575041021,-151.0,0.0001758,2]
[338374210,1726575041031,-151.0,0.0001758,2]
[338374211,1726575041040,-1670.303518,0.0001758,2]
[338374212,1726575041049,-258.713938,0.0001758,2]
[338374213,1726575041060,-1670.303518,0.0001758,2]
[338374214,1726575041069,-151.0,0.00017594,2]
[338374215,1726575041079,-236.404858,0.00017594,2]
[338374216,1726575041088,-236.404858,0.00017594,2]
[338374217,1726575041098,-151.0,0.00017594,2]
[338374218,1726575041108,-151.0,0.00017594,2]
[338374219,1726575041118,-151.0,0.00017594,2]
[338374220,1726575041127,-151.0,0.00017594,2]
[338374221,1726575041136,-180.867699,0.00017594,2]
[338374222,1726575041146,-801.747779,0.00017594,2]
[338374223,1726575041155,-801.747779,0.00017594,2]
[338374224,1726575041165,-279.403508,0.00017594,2]
[338374225,1726575041175,-151.0,0.00017594,2]
[338374226,1726575041184,-279.403508,0.00017594,2]
[338374227,1726575041192,-151.0,0.00017594,2]
[338374228,1726575041201,-1839.236717,0.00017594,2]
[338374229,1726575041210,-172.335319,0.00017594,2]
[338374230,1726575041220,-172.335319,0.00017594,2]
[338374231,1726575041230,-291.050099,0.00017594,2]
[338374232,1726575041239,-232.779575,0.00017594,2]
[338374233,1726575041249,-277.266269,0.00017594,2]
[338374234,1726575041258,-277.266269,0.00017594,2]
[338374235,1726575041268,-554.055012,0.00017594,2]
[338374236,1726575041278,-554.055012,0.00017594,2]
[338374237,1726575041288,-151.0,0.00017594,2]
[338374238,1726575041297,-151.0,0.00017594,2]
[338374239,1726575041308,-151.0,0.00017594,2]
[338374240,1726575041318,-312.119129,0.00017594,2]
[338374241,1726575041327,-312.119129,0.00017594,2]
[338374242,1726575041338,-151.0,0.00017594,2]
[338374243,1726575041348,-151.0,0.00017594,2]
[338374244,1726575041360,-151.0,0.00017594,2]
[338374245,1726575041369,-151.0,0.00017594,2]
[338374246,1726575041379,-151.0,0.00017594,2]
[338374247,1726575041389,-1670.303518,0.00017594,2]
[338374248,1726575041400,-1670.303518,0.00017594,2]
[338374249,1726575041410,-151.0,0.00017604,2]
[338374250,1726575041421,-151.0,0.00017604,2]
[338374251,1726575041433,-151.0,0.00017632,2]
[338374252,1726575041443,-151.0,0.00017632,2]
[338374253,1726575041454,-151.0,0.00017632,2]
[338374254,1726575041464,-151.0,0.00017636,2]
[338374255,1726575041473,-151.0,0.00017636,2]
[338374256,1726575041483,-312.119129,0.00017636,2]
[338374257,1726575041492,-312.119129,0.00017636,2]
[338374258,1726575041501,-151.0,0.00017636,2]
[338374259,1726575041510,-512.91400848,0.0001786,2]
[338374260,1726575041519,-277.266269,0.0001786,2]
[338374261,1726575041529,-277.266269,0.0001786,2]
[338374262,1726575041538,-554.055012,0.0001786,2]
[338374263,1726575041547,-554.055012,0.0001786,2]
[338374264,1726575041556,-151.0,0.0001786,2]
[338374265,1726575041565,-1670.303518,0.0001786,2]
[338374266,1726575041574,-1670.303518,0.0001786,2]
[338374267,1726575041583,-1000.0,0.0001786,2]
[338374268,1726575041592,-500.0,0.00017862,2]
[338374269,1726575041600,-322.55733426,0.00017862,2]
[338374270,1726575041610,-500.0,0.00017862,2]
[338374271,1726575041622,-333.23776437,0.00017862,2]
[338374272,1726575041631,-500.0,0.00017862,2]
[338374273,1726575041640,-500.0,0.00017862,2]
[338374274,1726575041649,-500.0,0.00017862,2]
[338374275,1726575041658,-500.0,0.00017862,2]
[338374276,1726575041667,-500.0,0.00017862,2]
[338374277,1726575041676,-500.0,0.00017862,2]
[338374278,1726575041685,-500.0,0.00017862,2]
[338374279,1726575041694,-478.34798112,0.00017862,2]
[338374280,1726575041703,-915.27628195,0.00017862,5]
[338374281,1726575041713,-65348.3506786,0.00017863,2]
[338374282,1726575041722,-76368.9933915,0.00017863,2]
[338374283,1726575041733,-1670.303518,0.00017863,2]
[338374284,1726575041744,-1670.303518,0.00017863,2]
[338374285,1726575041754,-1670.303518,0.00017863,2]
[338374286,1726575041763,-1670.303518,0.00017863,2]
[338374287,1726575041774,-269.448272,0.00017873,2]
[338374288,1726575041784,-151.0,0.00017873,2]
[338374289,1726575041793,-151.0,0.00017873,2]
[338374290,1726575041802,-151.0,0.00017873,2]
[338374291,1726575041811,-4000.0,0.00017873,2]
[338374292,1726575041821,-4000.0,0.00017873,2]
[338374293,1726575041830,-4000.0,0.00017873,2]
[338374294,1726575041840,-4000.0,0.00017873,2]
[338374295,1726575041851,-4000.0,0.00017873,2]
[338374296,1726575041862,-4000.0,0.00017873,2]
[338374297,1726575041872,-4000.0,0.00017873,2]
[338374298,1726575041882,-859.278963,0.00017873,2]
[338374299,1726575041893,-314.42234,0.00017873,2]
[338374300,1726575041903,-314.42234,0.00017873,2]
[338374301,1726575041914,-312.368011,0.00017873,2]
[338374302,1726575041926,-312.368011,0.00017873,2]
[338374303,1726575041937,-151.0,0.00017873,2]
[338374304,1726575041947,-151.0,0.00017873,2]
[338374305,1726575041956,-151.0,0.00017873,2]
[338374306,1726575041965,-151.0,0.00017873,2]
[338374307,1726575041974,-151.0,0.00017873,2]
[338374308,1726575041983,-151.0,0.00017873,2]
[338374309,1726575041993,-151.0,0.00017873,2]
[338374310,1726575042002,-151.0,0.00017873,2]
[338374311,1726575042011,-151.0,0.00017873,2]
[338374312,1726575042020,-312.119129,0.00017873,2]
[338374313,1726575042029,-312.119129,0.00017873,2]
[338374314,1726575042038,-312.119129,0.00017873,2]
[338374315,1726575042047,-312.119129,0.00017873,2]
[338374316,1726575042056,-151.0,0.00017873,2]
[338374317,1726575042065,-151.0,0.00017873,2]
[338374318,1726575042074,-151.0,0.00017873,2]
[338374319,1726575042083,-151.0,0.00017873,2]
[338374320,1726575042092,-151.0,0.00017873,2]
[338374321,1726575042101,-151.0,0.00017873,2]
[338374322,1726575042111,-151.0,0.00017873,2]
[338374323,1726575042120,-151.0,0.00017873,2]
[338374324,1726575042130,-1670.303518,0.00017873,2]
[338374325,1726575042140,-1670.303518,0.00017873,2]
[338374326,1726575042149,-1670.303518,0.00017873,2]
[338374327,1726575042158,-1670.303518,0.00017873,2]
[338374328,1726575042167,-210.519838,0.00017875,2]
[338374329,1726575042177,-210.519838,0.00017875,2]
[338374330,1726575042186,-151.0,0.00017878,2]
[338374331,1726575042195,-180.867699,0.00017878,2]
[338374332,1726575042205,-279.403508,0.00017878,2]
[338374333,1726575042215,-151.0,0.00017878,2]
[338374334,1726575042224,-279.403508,0.00017878,2]
[338374335,1726575042233,-151.0,0.00017878,2]
[338374336,1726575042243,-151.0,0.00017878,2]
[338374337,1726575042252,-151.0,0.00017878,2]
[338374338,1726575042261,-151.0,0.00017878,2]
[338374339,1726575042271,-2217.19217913,0.0001788,2]
[338374340,1726575042281,-1670.303518,0.0001795,2]
[338374341,1726575042290,-1670.303518,0.0001795,2]